[Event "Panchenko Memorial 2019"]
[Site "Chelyabinsk"]
[Date "2019.09.14"]
[Round "6.7"]
[White "Kostenko, Petr"]
[Black "Stupak, Kirill"]
[Result "0-1"]
[ECO "C09"]
[WhiteElo "2472"]
[BlackElo "2551"]
[Annotator "ChessBase"]
[PlyCount "128"]
[EventDate "2019.09.09"]
[EventType "swiss"]
[EventCountry "RUS"]
[SourceTitle "playchess.com"]
[Source "ChessBase"]
[SourceQuality "1"]
[TimeControl "5400+30"]

1. e4 {[%emt 0:00:00]} e6 {[%emt 0:00:28]} 2. d4 {[%emt 0:00:00]} d5 {[%emt 0:00:02]} 3. Nd2 {[%emt 0:00:40]} c5 {[%emt 0:01:29]} 4. Ngf3 {[%emt 0:01:25]} Nc6 {[%emt 0:00:33]} 5. exd5 {[%emt 0:00:56]} exd5 {[%emt 0:00:06]} 6. Bb5 {[%emt 0:00:05]} Qe7+ {[%emt 0:00:59]} 7. Be2 {[%emt 0:02:10]} Nf6 {[%emt 0:00:29]} 8. O-O {[%emt 0:00:07]} Qc7 {[%emt 0:00:04]} 9. c4 {[%emt 0:02:12]} cxd4 {[%emt 0:17:38]} 10. cxd5 {[%emt 0:09:33]} Nxd5 {[%emt 0:00:05]} 11. Nb3 {[%emt 0:00:45]} Be7 {[%emt 0:02:43]} 12. Nfxd4 {[%emt 0:06:39]} O-O {[%emt 0:07:34]} 13. Bf3 {[%emt 0:03:30]} Rd8 {[%emt 0:04:08]} 14. Nxc6 {[%emt 0:02:53]} bxc6 {[%emt 0:01:19]} 15. Bd2 {[%emt 0:02:35]} a5 {[%emt 0:10:33]} 16. Rc1 {[%emt 0:00:27]} Qb6 {[%emt 0:00:51]} 17. Re1 {[%emt 0:25:13]} Be6 {[%emt 0:03:04]} 18. Qc2 {[%emt 0:02:57]} Nb4 {[%emt 0:17:16]} 19. Bxb4 {[%emt 0:00:13]} axb4 {[%emt 0:02:54]} 20. Qb1 {[%emt 0:03:13]} Rac8 {[%emt 0:03:44]} 21. Be4 {[%emt 0:08:48]} g6 {[%emt 0:01:32]} 22. Bd3 {[%emt 0:06:17]} Bg5 {[%emt 0:02:25]} 23. Rc5 {[%emt 0:01:56]} Bxb3 {[%emt 0:00:48]} 24. Rxg5 {[%emt 0:00:07]} Bxa2 {[%emt 0:00:07]} 25. Qc2 {[%emt 0:00:22]} Qd4 {[%emt 0:01:46]} 26. Ba6 {[%emt 0:02:13]} Rc7 {[%emt 0:03:20]} 27. b3 {[%emt 0:00:08]} Qc3 {[%emt 0:06:54]} 28. Qxc3 {[%emt 0:00:09]} bxc3 {[%emt 0:00:02]} 29. Rc5 {[%emt 0:00:06]} Bxb3 {[%emt 0:00:25]} 30. Rxc3 {[%emt 0:00:03]} Bd5 {[%emt 0:00:03]} 31. Rec1 {[%emt 0:00:28]} Kf8 {[%emt 0:00:44]} 32. h4 {[%emt 0:00:27]} h5 {[%emt 0:00:17]} 33. f3 {[%emt 0:01:40]} Ke7 {[%emt 0:00:32]} 34. Kf2 {[%emt 0:00:05]} Rb8 {[%emt 0:00:59]} 35. g4 {[%emt 0:01:41]} Rb4 {[%emt 0:01:16]} 36. Kg3 {[%emt 0:00:42]} Ra7 {[%emt 0:02:54]} 37. Be2 {[%emt 0:02:33]} Kd6 {[%emt 0:00:36]} 38. Rd1 {[%emt 0:02:29]} Raa4 {[%emt 0:00:45]} 39. Rd2 {[%emt 0:01:01]} f5 {[%emt 0:00:53]} 40. Bd1 {[%emt 0:01:23]} Rd4 {[%emt 0:04:30]} 41. gxf5 {[%emt 0:06:16]} gxf5 {[%emt 0:00:25]} 42. Rxd4 {[%emt 0:00:40]} Rxd4 {[%emt 0:00:01]} 43. Bc2 {[%emt 0:00:05]} f4+ {[%emt 0:00:16]} 44. Kf2 {[%emt 0:00:04]} Rd2+ {[%emt 0:00:08]} 45. Kg1 {[%emt 0:00:40]} Ke5 {[%emt 0:04:05]} 46. Bg6 {[%emt 0:00:05]} Kd4 {[%emt 0:00:02]} 47. Ra3 {[%emt 0:00:25]} c5 {[%emt 0:00:01]} 48. Bxh5 {[%emt 0:02:20]} c4 {[%emt 0:00:01]} 49. Ra4 {[%emt 0:01:13]} Ke3 {[%emt 0:00:57]} 50. Ra3+ {[%emt 0:00:19]} Rd3 {[%emt 0:01:13]} 51. Ra7 {[%emt 0:00:21]} c3 {[%emt 0:00:19]} 52. Rc7 {[%emt 0:00:17]} Rd1+ {[%emt 0:00:19]} 53. Kg2 {[%emt 0:00:16]} Rd2+ {[%emt 0:00:32]} 54. Kh3 {[%emt 0:00:17]} c2 {[%emt 0:00:31]} 55. Bg4 {[%emt 0:00:37]} Bxf3 {[%emt 0:00:50]} 56. Bxf3 {[%emt 0:00:28]} Kxf3 {[%emt 0:00:01]} 57. h5 {[%emt 0:00:07]} Ke2 {[%emt 0:00:17]} 58. h6 {[%emt 0:00:35]} Kd1 {[%emt 0:00:19]} 59. h7 {[%emt 0:00:19]} Rd8 {[%emt 0:00:02]} 60. Rd7+ {[%emt 0:01:21]} Rxd7 {[%emt 0:00:02]} 61. h8=Q {[%emt 0:00:05]} Rd3+ {[%emt 0:00:30]} 62. Kg2 {[%emt 0:00:05]} c1=Q {[%emt 0:00:21]} 63. Qh5+ {[%emt 0:00:17]} f3+ {[%emt 0:00:07]} 64. Kg3 {[%emt 0:00:05]} Qc7+ {[%emt 0:00:12]} 0-1

[Event "Panchenko Memorial 2019"]
[Site "Chelyabinsk"]
[Date "2019.09.14"]
[Round "6.8"]
[White "Salemgareev, Tagir"]
[Black "Kotsur, Pavel"]
[Result "1/2-1/2"]
[ECO "E17"]
[WhiteElo "2457"]
[BlackElo "2528"]
[Annotator "ChessBase"]
[PlyCount "91"]
[EventDate "2019.09.09"]
[EventType "swiss"]
[EventCountry "RUS"]
[SourceTitle "playchess.com"]
[Source "ChessBase"]
[SourceQuality "1"]
[TimeControl "5400+30"]

1. d4 {[%emt 0:00:00]} Nf6 {[%emt 0:00:00]} 2. c4 {[%emt 0:00:00]} e6 {[%emt 0:00:00]} 3. Nf3 {[%emt 0:00:00]} b6 {[%emt 0:00:15]} 4. g3 {[%emt 0:00:00]} Bb7 {[%emt 0:03:26]} 5. Bg2 {[%emt 0:00:00]} Be7 {[%emt 0:00:04]} 6. O-O {[%emt 0:00:02]} O-O {[%emt 0:00:04]} 7. Re1 {[%emt 0:00:03]} a5 {[%emt 0:05:49]} 8. Nc3 {[%emt 0:10:30]} Ne4 {[%emt 0:01:11]} 9. Nxe4 {[%emt 0:00:56]} Bxe4 {[%emt 0:00:03]} 10. Ne5 {[%emt 0:00:43]} Bxg2 {[%emt 0:00:36]} 11. Kxg2 {[%emt 0:00:04]} d6 {[%emt 0:03:05]} 12. Nf3 {[%emt 0:00:57]} d5 {[%emt 0:01:49]} 13. cxd5 {[%emt 0:01:43]} exd5 {[%emt 0:01:25]} 14. Bf4 {[%emt 0:02:21]} Bb4 {[%emt 0:09:54]} 15. Rf1 {[%emt 0:01:19]} Bd6 {[%emt 0:00:10]} 16. Qd2 {[%emt 0:08:00]} Re8 {[%emt 0:02:35]} 17. Rac1 {[%emt 0:00:23]} Na6 {[%emt 0:04:37]} 18. Bxd6 {[%emt 0:06:00]} Qxd6 {[%emt 0:00:17]} 19. Rfd1 {[%emt 0:00:15]} c6 {[%emt 0:23:34]} 20. e3 {[%emt 0:04:11]} Rac8 {[%emt 0:00:21]} 21. Qc2 {[%emt 0:08:36]} Nb8 {[%emt 0:09:43]} 22. Qa4 {[%emt 0:16:52]} Nd7 {[%emt 0:03:29]} 23. Rc2 {[%emt 0:01:46]} h6 {[%emt 0:01:50]} 24. Rdc1 {[%emt 0:01:48]} Re6 {[%emt 0:04:57]} 25. Ne1 {[%emt 0:04:22]} g5 {[%emt 0:07:04]} 26. Nd3 {[%emt 0:01:53]} Rg6 {[%emt 0:01:58]} 27. Rd2 {[%emt 0:04:12]} Qe6 {[%emt 0:00:39]} 28. Qd1 {[%emt 0:07:59]} Rf6 {[%emt 0:03:00]} 29. Kg1 {[%emt 0:08:55]} Kg7 {[%emt 0:01:28]} 30. b3 {[%emt 0:01:26]} Qf5 {[%emt 0:02:02]} 31. Ne5 {[%emt 0:03:24]} Nxe5 {[%emt 0:03:09]} 32. dxe5 {[%emt 0:00:05]} Qxe5 {[%emt 0:00:03]} 33. Rxd5 {[%emt 0:00:26]} cxd5 {[%emt 0:00:25]} 34. Rxc8 {[%emt 0:00:05]} Rxf2 {[%emt 0:00:04]} 35. Kxf2 {[%emt 0:00:47]} Qf5+ {[%emt 0:00:04]} 36. Kg2 {[%emt 0:02:30]} Qxc8 {[%emt 0:00:04]} 37. Qxd5 {[%emt 0:00:06]} Qc2+ {[%emt 0:03:44]} 38. Kh3 {[%emt 0:01:19]} Qf2 {[%emt 0:01:51]} 39. Qd4+ {[%emt 0:01:06]} Kg6 {[%emt 0:00:24]} 40. Qxb6+ {[%emt 0:00:49]} f6 {[%emt 0:00:56]} 41. Qb5 {[%emt 0:00:25]} Qxe3 {[%emt 0:01:13]} 42. Qc4 {[%emt 0:00:57]} Qf3 {[%emt 0:02:39]} 43. Qg8+ {[%emt 0:01:25]} Kf5 {[%emt 0:00:02]} 44. Qc8+ {[%emt 0:01:04]} Kg6 {[%emt 0:01:04]} 45. Qg8+ {[%emt 0:00:52]} Kf5 {[%emt 0:00:05]} 46. Qc8+ {[%emt 0:00:14]} 1/2-1/2

[Event "Panchenko Memorial 2019"]
[Site "Chelyabinsk"]
[Date "2019.09.14"]
[Round "6.9"]
[White "Zakhartsov, Vladimir"]
[Black "Bezgodov, Alexei"]
[Result "1/2-1/2"]
[ECO "D02"]
[WhiteElo "2519"]
[BlackElo "2453"]
[Annotator "ChessBase"]
[PlyCount "138"]
[EventDate "2019.09.09"]
[EventType "swiss"]
[EventCountry "RUS"]
[SourceTitle "playchess.com"]
[Source "ChessBase"]
[SourceQuality "1"]
[TimeControl "5400+30"]

1. d4 {[%emt 0:06:37]} d5 {[%emt 0:00:00]} 2. Nf3 {[%emt 0:00:09]} Bf5 {[%emt 0:04:59]} 3. g3 {[%emt 0:03:40]} c6 {[%emt 0:01:21]} 4. Bg2 {[%emt 0:00:11]} e6 {[%emt 0:00:23]} 5. O-O {[%emt 0:00:49]} Bd6 {[%emt 0:02:59]} 6. a4 {[%emt 0:04:00]} a5 {[%emt 0:02:52]} 7. c4 {[%emt 0:01:24]} Na6 {[%emt 0:01:54]} 8. Qb3 {[%emt 0:01:35]} Rb8 {[%emt 0:01:22]} 9. Bd2 {[%emt 0:04:24]} Nf6 {[%emt 0:02:22]} 10. Rc1 {[%emt 0:00:29]} O-O {[%emt 0:00:53]} 11. Na3 {[%emt 0:02:44]} Ne4 {[%emt 0:02:28]} 12. Be1 {[%emt 0:00:28]} Bg4 {[%emt 0:01:05]} 13. Qe3 {[%emt 0:05:18]} f5 {[%emt 0:07:08]} 14. Qb3 {[%emt 0:05:06]} f4 {[%emt 0:04:20]} 15. cxd5 {[%emt 0:04:57]} exd5 {[%emt 0:00:28]} 16. Nb5 {[%emt 0:02:10]} fxg3 {[%emt 0:11:47]} 17. hxg3 {[%emt 0:00:21]} Bb4 {[%emt 0:08:17]} 18. Ne5 {[%emt 0:09:24]} Bxe1 {[%emt 0:02:44]} 19. Rxe1 {[%emt 0:00:04]} Nxf2 {[%emt 0:02:00]} 20. Rf1 {[%emt 0:00:13]} Be6 {[%emt 0:04:59]} 21. Rxf2 {[%emt 0:02:12]} Rxf2 {[%emt 0:00:10]} 22. Kxf2 {[%emt 0:00:06]} cxb5 {[%emt 0:00:04]} 23. Qxb5 {[%emt 0:02:38]} Nb4 {[%emt 0:00:29]} 24. Rc1 {[%emt 0:07:20]} b6 {[%emt 0:04:15]} 25. Rc3 {[%emt 0:02:19]} Qd6 {[%emt 0:02:33]} 26. Kg1 {[%emt 0:01:30]} Rf8 {[%emt 0:01:09]} 27. Rf3 {[%emt 0:03:22]} Bc8 {[%emt 0:01:55]} 28. e3 {[%emt 0:04:49]} Be6 {[%emt 0:04:12]} 29. Rxf8+ {[%emt 0:00:26]} Kxf8 {[%emt 0:00:18]} 30. Qf1+ {[%emt 0:00:09]} Kg8 {[%emt 0:03:06]} 31. Qc1 {[%emt 0:02:25]} g6 {[%emt 0:02:15]} 32. Qf1 {[%emt 0:01:41]} Kg7 {[%emt 0:02:15]} 33. g4 {[%emt 0:02:46]} Qf8 {[%emt 0:04:21]} 34. Qb5 {[%emt 0:02:39]} Qd8 {[%emt 0:00:14]} 35. Bf3 {[%emt 0:02:19]} Kh6 {[%emt 0:00:42]} 36. Kg2 {[%emt 0:00:50]} Kg7 {[%emt 0:00:13]} 37. Qe2 {[%emt 0:01:47]} Qc7 {[%emt 0:01:49]} 38. Qd2 {[%emt 0:01:03]} Qc2 {[%emt 0:01:15]} 39. Qxc2 {[%emt 0:00:40]} Nxc2 {[%emt 0:00:01]} 40. Kf2 {[%emt 0:00:07]} Kf6 {[%emt 0:00:21]} 41. Be2 {[%emt 0:01:41]} Nb4 {[%emt 0:01:20]} 42. Kg3 {[%emt 0:00:27]} g5 {[%emt 0:02:41]} 43. Kf2 {[%emt 0:02:53]} Ke7 {[%emt 0:00:25]} 44. Bb5 {[%emt 0:00:54]} Kd6 {[%emt 0:00:22]} 45. Ke2 {[%emt 0:00:45]} Ke7 {[%emt 0:00:51]} 46. Kd2 {[%emt 0:00:23]} Kd6 {[%emt 0:00:09]} 47. Kc3 {[%emt 0:02:29]} Na2+ {[%emt 0:00:13]} 48. Kd3 {[%emt 0:00:37]} Nb4+ {[%emt 0:00:06]} 49. Kd2 {[%emt 0:00:06]} Ke7 {[%emt 0:00:08]} 50. Be2 {[%emt 0:00:59]} Kd6 {[%emt 0:00:27]} 51. Bf3 {[%emt 0:00:33]} Nc6 {[%emt 0:00:30]} 52. Nd3 {[%emt 0:00:18]} Bd7 {[%emt 0:01:22]} 53. Nf2 {[%emt 0:01:02]} h6 {[%emt 0:00:47]} 54. Bd1 {[%emt 0:01:13]} Nb4 {[%emt 0:00:33]} 55. e4 {[%emt 0:00:37]} dxe4 {[%emt 0:00:27]} 56. Nxe4+ {[%emt 0:00:01]} Ke7 {[%emt 0:00:06]} 57. Nc3 {[%emt 0:01:01]} Bc6 {[%emt 0:00:15]} 58. Be2 {[%emt 0:00:54]} Kd6 {[%emt 0:00:22]} 59. b3 {[%emt 0:02:03]} Ke7 {[%emt 0:00:32]} 60. Bb5 {[%emt 0:01:06]} Bf3 {[%emt 0:00:34]} 61. Be2 {[%emt 0:00:02]} Bc6 {[%emt 0:00:20]} 62. Nd1 {[%emt 0:02:01]} Nd5 {[%emt 0:01:21]} 63. Bf3 {[%emt 0:00:22]} Kd6 {[%emt 0:00:24]} 64. Nb2 {[%emt 0:00:24]} Nf6 {[%emt 0:00:43]} 65. Nc4+ {[%emt 0:00:09]} Kc7 {[%emt 0:00:01]} 66. Bd1 {[%emt 0:01:48]} Bd7 {[%emt 0:00:27]} 67. Ne5 {[%emt 0:00:44]} Be6 {[%emt 0:00:06]} 68. Kd3 {[%emt 0:00:24]} Nd5 {[%emt 0:00:43]} 69. Kd2 {[%emt 0:00:51]} Nf6 {[%emt 0:00:08]} 1/2-1/2

[Event "Panchenko Memorial 2019"]
[Site "Chelyabinsk"]
[Date "2019.09.14"]
[Round "6.10"]
[White "Ulybin, Mikhail"]
[Black "Meister, Jakob"]
[Result "1/2-1/2"]
[ECO "C10"]
[WhiteElo "2475"]
[BlackElo "2410"]
[Annotator "ChessBase"]
[PlyCount "140"]
[EventDate "2019.09.09"]
[EventType "swiss"]
[EventCountry "RUS"]
[SourceTitle "playchess.com"]
[Source "ChessBase"]
[SourceQuality "1"]
[TimeControl "5400+30"]

1. e4 {[%emt 0:12:09]} e6 {[%emt 0:00:00]} 2. d4 {[%emt 0:02:19]} d5 {[%emt 0:01:09]} 3. Nd2 {[%emt 0:01:32]} dxe4 {[%emt 0:00:18]} 4. Nxe4 {[%emt 0:00:32]} Bd7 {[%emt 0:00:02]} 5. Nf3 {[%emt 0:04:27]} Bc6 {[%emt 0:00:10]} 6. Bd3 {[%emt 0:00:45]} Nd7 {[%emt 0:00:01]} 7. Qe2 {[%emt 0:03:39]} Be7 {[%emt 0:00:24]} 8. O-O {[%emt 0:01:50]} Ngf6 {[%emt 0:04:46]} 9. Neg5 {[%emt 0:01:57]} Bxf3 {[%emt 0:03:16]} 10. Qxf3 {[%emt 0:04:06]} c6 {[%emt 0:05:18]} 11. Re1 {[%emt 0:07:06]} O-O {[%emt 0:05:01]} 12. Qh3 {[%emt 0:06:53]} g6 {[%emt 0:00:46]} 13. Bc4 {[%emt 0:24:03]} Qa5 {[%emt 0:20:00]} 14. Bf4 {[%emt 0:05:21]} Qf5 {[%emt 0:07:06]} 15. Nxe6 {[%emt 0:04:47]} Qxh3 {[%emt 0:03:05]} 16. gxh3 {[%emt 0:00:28]} fxe6 {[%emt 0:00:24]} 17. Bxe6+ {[%emt 0:10:34]} Rf7 {[%emt 0:00:47]} 18. c4 {[%emt 0:01:21]} Nf8 {[%emt 0:03:35]} 19. Bxf7+ {[%emt 0:00:20]} Kxf7 {[%emt 0:00:06]} 20. Rad1 {[%emt 0:03:05]} Rd8 {[%emt 0:00:23]} 21. Rd3 {[%emt 0:01:31]} Rd7 {[%emt 0:00:09]} 22. Be5 {[%emt 0:00:44]} Ne6 {[%emt 0:01:51]} 23. Kf1 {[%emt 0:01:09]} Ng7 {[%emt 0:01:01]} 24. d5 {[%emt 0:00:39]} c5 {[%emt 0:01:06]} 25. Ra3 {[%emt 0:00:39]} b6 {[%emt 0:01:32]} 26. Ra6 {[%emt 0:00:16]} Nf5 {[%emt 0:02:04]} 27. a4 {[%emt 0:00:42]} Rb7 {[%emt 0:06:10]} 28. a5 {[%emt 0:00:26]} Nd7 {[%emt 0:01:19]} 29. axb6 {[%emt 0:00:14]} axb6 {[%emt 0:00:11]} 30. Ra8 {[%emt 0:00:49]} Nxe5 {[%emt 0:01:39]} 31. Rxe5 {[%emt 0:00:05]} Nd6 {[%emt 0:04:12]} 32. b3 {[%emt 0:00:08]} b5 {[%emt 0:00:42]} 33. cxb5 {[%emt 0:00:26]} Nxb5 {[%emt 0:04:01]} 34. Rh8 {[%emt 0:00:30]} Kg7 {[%emt 0:01:38]} 35. Re8 {[%emt 0:01:00]} Bd6 {[%emt 0:01:34]} 36. R5e6 {[%emt 0:00:23]} Rd7 {[%emt 0:00:32]} 37. h4 {[%emt 0:00:59]} Nd4 {[%emt 0:00:23]} 38. Re3 {[%emt 0:00:30]} Nf5 {[%emt 0:00:19]} 39. Rh3 {[%emt 0:00:31]} h5 {[%emt 0:00:20]} 40. Re6 {[%emt 0:00:30]} Be7 {[%emt 0:01:08]} 41. Rd3 {[%emt 0:00:31]} Bd6 {[%emt 0:01:48]} 42. h3 {[%emt 0:00:27]} Kf7 {[%emt 0:00:30]} 43. Re4 {[%emt 0:00:28]} Be7 {[%emt 0:02:04]} 44. Rc4 {[%emt 0:00:18]} Rb7 {[%emt 0:01:25]} 45. Rf3 {[%emt 0:00:34]} Bd6 {[%emt 0:00:29]} 46. Re4 {[%emt 0:00:25]} Re7 {[%emt 0:01:09]} 47. Rxe7+ {[%emt 0:00:40]} Kxe7 {[%emt 0:00:06]} 48. Rd3 {[%emt 0:00:33]} Be5 {[%emt 0:00:09]} 49. Ke2 {[%emt 0:00:26]} Kd6 {[%emt 0:00:58]} 50. Kf3 {[%emt 0:00:26]} Bd4 {[%emt 0:01:15]} 51. Kf4 {[%emt 0:00:39]} Bf6 {[%emt 0:02:49]} 52. Rd1 {[%emt 0:00:27]} Bxh4 {[%emt 0:01:06]} 53. Rg1 {[%emt 0:00:30]} Ne7 {[%emt 0:00:09]} 54. Ke4 {[%emt 0:00:34]} Bxf2 {[%emt 0:02:02]} 55. Ra1 {[%emt 0:00:20]} Bg3 {[%emt 0:00:18]} 56. Ra6+ {[%emt 0:00:44]} Kd7 {[%emt 0:00:04]} 57. Rf6 {[%emt 0:00:26]} Bd6 {[%emt 0:00:29]} 58. Rf7 {[%emt 0:00:24]} Bh2 {[%emt 0:02:30]} 59. Rf2 {[%emt 0:00:16]} Bg3 {[%emt 0:00:24]} 60. Rf6 {[%emt 0:00:23]} h4 {[%emt 0:00:34]} 61. Rf7 {[%emt 0:00:40]} g5 {[%emt 0:00:20]} 62. Rg7 {[%emt 0:00:35]} Bf4 {[%emt 0:00:07]} 63. Rf7 {[%emt 0:00:31]} Bd2 {[%emt 0:01:30]} 64. Rh7 {[%emt 0:00:29]} Bc1 {[%emt 0:01:21]} 65. Rf7 {[%emt 0:00:32]} Bb2 {[%emt 0:00:40]} 66. Rh7 {[%emt 0:00:32]} Bc1 {[%emt 0:00:33]} 67. Rf7 {[%emt 0:00:22]} Bf4 {[%emt 0:00:12]} 68. Rh7 {[%emt 0:00:23]} Ke8 {[%emt 0:01:11]} 69. Rh6 {[%emt 0:00:40]} Kd7 {[%emt 0:01:38]} 70. Rh7 {[%emt 0:00:20]} Bc1 {[%emt 0:01:23]} 1/2-1/2

[Event "Panchenko Memorial 2019"]
[Site "Chelyabinsk"]
[Date "2019.09.15"]
[Round "7.1"]
[White "Zhigalko, Andrey"]
[Black "Volkov, Sergey"]
[Result "1/2-1/2"]
[ECO "C11"]
[WhiteElo "2539"]
[BlackElo "2557"]
[Annotator "ChessBase"]
[PlyCount "135"]
[EventDate "2019.09.09"]
[EventType "swiss"]
[EventCountry "RUS"]
[SourceTitle "playchess.com"]
[Source "ChessBase"]
[SourceQuality "1"]
[TimeControl "5400+30"]

1. e4 {[%emt 0:00:00]} e6 {[%emt 0:00:00]} 2. d4 {[%emt 0:00:00]} d5 {[%emt 0:00:00]} 3. Nc3 {[%emt 0:00:00]} Nf6 {[%emt 0:00:03]} 4. e5 {[%emt 0:00:00]} Nfd7 {[%emt 0:00:06]} 5. f4 {[%emt 0:00:03]} c5 {[%emt 0:00:07]} 6. Nf3 {[%emt 0:00:03]} Nc6 {[%emt 0:01:43]} 7. Be3 {[%emt 0:00:11]} Be7 {[%emt 0:00:56]} 8. a3 {[%emt 0:00:46]} cxd4 {[%emt 0:01:49]} 9. Nxd4 {[%emt 0:00:10]} Nxd4 {[%emt 0:00:19]} 10. Bxd4 {[%emt 0:14:56]} Nb8 {[%emt 0:01:13]} 11. Bd3 {[%emt 0:02:03]} Nc6 {[%emt 0:01:06]} 12. Bf2 {[%emt 0:00:06]} Bd7 {[%emt 0:04:23]} 13. O-O {[%emt 0:02:01]} O-O {[%emt 0:03:08]} 14. Qd2 {[%emt 0:20:44]} Rc8 {[%emt 0:04:19]} 15. Rae1 {[%emt 0:06:29]} Qa5 {[%emt 0:02:29]} 16. Qe3 {[%emt 0:12:09]} g6 {[%emt 0:05:30]} 17. Ne2 {[%emt 0:00:37]} Bd8 {[%emt 0:03:18]} 18. c3 {[%emt 0:05:59]} Bb6 {[%emt 0:02:12]} 19. Qg3 {[%emt 0:03:34]} Bxf2+ {[%emt 0:01:54]} 20. Qxf2 {[%emt 0:05:39]} Qb6 {[%emt 0:00:26]} 21. Qxb6 {[%emt 0:01:36]} axb6 {[%emt 0:00:07]} 22. g3 {[%emt 0:04:33]} Kg7 {[%emt 0:01:54]} 23. Kf2 {[%emt 0:03:31]} f6 {[%emt 0:03:00]} 24. exf6+ {[%emt 0:00:56]} Rxf6 {[%emt 0:00:43]} 25. Nd4 {[%emt 0:03:46]} g5 {[%emt 0:05:57]} 26. Ke3 {[%emt 0:00:01]} gxf4+ {[%emt 0:07:11]} 27. gxf4 {[%emt 0:00:02]} Rcf8 {[%emt 0:00:13]} 28. h4 {[%emt 0:04:49]} Kh6 {[%emt 0:02:27]} 29. Be2 {[%emt 0:01:55]} Be8 {[%emt 0:03:49]} 30. b4 {[%emt 0:01:38]} Bh5 {[%emt 0:02:15]} 31. Bb5 {[%emt 0:00:34]} Nxd4 {[%emt 0:07:40]} 32. Kxd4 {[%emt 0:00:58]} Bg4 {[%emt 0:00:25]} 33. Ke5 {[%emt 0:02:57]} Rf5+ {[%emt 0:02:36]} 34. Kd6 {[%emt 0:00:02]} d4 {[%emt 0:05:00]} 35. Rxe6+ {[%emt 0:01:32]} R8f6 {[%emt 0:04:57]} 36. Rxf6+ {[%emt 0:00:39]} Rxf6+ {[%emt 0:00:02]} 37. Kc7 {[%emt 0:01:13]} dxc3 {[%emt 0:00:43]} 38. Rc1 {[%emt 0:00:51]} Kh5 {[%emt 0:02:46]} 39. Rxc3 {[%emt 0:00:58]} Kxh4 {[%emt 0:00:13]} 40. Kxb7 {[%emt 0:00:16]} h5 {[%emt 0:00:05]} 41. Bc6 {[%emt 0:00:46]} Be2 {[%emt 0:04:01]} 42. Kxb6 {[%emt 0:00:23]} Kg4 {[%emt 0:00:04]} 43. b5 {[%emt 0:00:40]} h4 {[%emt 0:00:09]} 44. Rc2 {[%emt 0:01:05]} Bf3 {[%emt 0:01:27]} 45. a4 {[%emt 0:00:29]} h3 {[%emt 0:00:15]} 46. a5 {[%emt 0:00:23]} Rh6 {[%emt 0:06:16]} 47. a6 {[%emt 0:00:24]} Bxc6 {[%emt 0:00:11]} 48. Rxc6 {[%emt 0:00:54]} Rxc6+ {[%emt 0:00:25]} 49. bxc6 {[%emt 0:00:03]} h2 {[%emt 0:00:02]} 50. c7 {[%emt 0:00:41]} h1=Q {[%emt 0:00:06]} 51. c8=Q+ {[%emt 0:00:04]} Kxf4 {[%emt 0:00:20]} 52. Qc4+ {[%emt 0:01:02]} Kg3 {[%emt 0:00:20]} 53. a7 {[%emt 0:00:23]} Qb1+ {[%emt 0:01:18]} 54. Qb5 {[%emt 0:00:32]} Qg6+ {[%emt 0:00:42]} 55. Qc6 {[%emt 0:00:39]} Qb1+ {[%emt 0:00:08]} 56. Kc7 {[%emt 0:00:32]} Qh7+ {[%emt 0:00:09]} 57. Kb8 {[%emt 0:00:38]} Qg8+ {[%emt 0:01:35]} 58. Kb7 {[%emt 0:00:15]} Qb3+ {[%emt 0:00:09]} 59. Kc7 {[%emt 0:00:45]} Qf7+ {[%emt 0:00:12]} 60. Qd7 {[%emt 0:00:28]} Qc4+ {[%emt 0:00:14]} 61. Kb6 {[%emt 0:00:21]} Qb3+ {[%emt 0:01:03]} 62. Qb5 {[%emt 0:00:09]} Qe6+ {[%emt 0:00:39]} 63. Ka5 {[%emt 0:00:57]} Qa2+ {[%emt 0:00:42]} 64. Qa4 {[%emt 0:00:32]} Qd5+ {[%emt 0:01:08]} 65. Kb4 {[%emt 0:00:26]} Qd4+ {[%emt 0:00:12]} 66. Kb3 {[%emt 0:00:38]} Qd1+ {[%emt 0:00:05]} 67. Ka3 {[%emt 0:00:07]} Qa1+ {[%emt 0:00:07]} 68. Kb4 1/2-1/2

[Event "Panchenko Memorial 2019"]
[Site "Chelyabinsk"]
[Date "2019.09.15"]
[Round "7.2"]
[White "Radzhabov, Rodion"]
[Black "Sivuk, Vitaly"]
[Result "0-1"]
[ECO "B73"]
[WhiteElo "2384"]
[BlackElo "2559"]
[Annotator "ChessBase"]
[PlyCount "72"]
[EventDate "2019.09.09"]
[EventType "swiss"]
[EventCountry "RUS"]
[SourceTitle "playchess.com"]
[Source "ChessBase"]
[SourceQuality "1"]
[TimeControl "5400+30"]

1. e4 {[%emt 0:00:00]} c5 {[%emt 0:00:00]} 2. Nf3 {[%emt 0:00:00]} Nc6 {[%emt 0:00:00]} 3. d4 {[%emt 0:00:01]} cxd4 {[%emt 0:00:00]} 4. Nxd4 {[%emt 0:00:04]} Nf6 {[%emt 0:00:10]} 5. Nc3 {[%emt 0:00:31]} d6 {[%emt 0:00:09]} 6. Be2 {[%emt 0:08:29]} g6 {[%emt 0:03:38]} 7. Be3 {[%emt 0:01:57]} Bg7 {[%emt 0:00:08]} 8. O-O {[%emt 0:05:24]} O-O {[%emt 0:00:09]} 9. Kh1 {[%emt 0:01:40]} Nxd4 {[%emt 0:09:48]} 10. Bxd4 {[%emt 0:01:06]} Be6 {[%emt 0:00:13]} 11. f4 {[%emt 0:03:22]} Rc8 {[%emt 0:10:38]} 12. f5 {[%emt 0:19:19]} Bd7 {[%emt 0:05:19]} 13. a4 {[%emt 0:06:36]} Bc6 {[%emt 0:02:22]} 14. Qd3 {[%emt 0:09:48]} a5 {[%emt 0:10:44]} 15. Rad1 {[%emt 0:04:06]} Nd7 {[%emt 0:04:11]} 16. Bxg7 {[%emt 0:00:55]} Kxg7 {[%emt 0:00:07]} 17. Qd4+ {[%emt 0:00:12]} Ne5 {[%emt 0:07:11]} 18. f6+ {[%emt 0:03:04]} exf6 {[%emt 0:00:11]} 19. Qxd6 {[%emt 0:00:07]} Re8 {[%emt 0:03:16]} 20. h3 {[%emt 0:04:18]} h5 {[%emt 0:04:30]} 21. Kg1 {[%emt 0:09:52]} Qb6+ {[%emt 0:00:58]} 22. Kh1 {[%emt 0:11:52]} Re6 {[%emt 0:12:09]} 23. Qa3 {[%emt 0:05:51]} Qe3 {[%emt 0:02:49]} 24. Rde1 {[%emt 0:00:37]} Qg3 {[%emt 0:05:10]} 25. Qc5 {[%emt 0:00:54]} Ng4 {[%emt 0:01:24]} 26. Qg1 {[%emt 0:00:44]} Rce8 {[%emt 0:06:51]} 27. Bc4 {[%emt 0:01:29]} Re5 {[%emt 0:00:23]} 28. hxg4 {[%emt 0:00:55]} hxg4 {[%emt 0:01:33]} 29. Qe3 {[%emt 0:00:01]} Qh4+ {[%emt 0:00:25]} 30. Kg1 {[%emt 0:00:04]} Rh8 {[%emt 0:03:20]} 31. Rf4 {[%emt 0:01:35]} g5 {[%emt 0:01:44]} 32. Rxf6 {[%emt 0:00:11]} Kxf6 {[%emt 0:02:13]} 33. Rf1+ {[%emt 0:00:17]} Kg6 {[%emt 0:00:22]} 34. Bxf7+ {[%emt 0:00:45]} Kg7 {[%emt 0:00:07]} 35. Qd4 {[%emt 0:00:50]} Qh2+ {[%emt 0:00:15]} 36. Kf2 {[%emt 0:00:00]} Rf8 {[%emt 0:00:37]} 0-1